lending/lending_fUSD_20250808
["ID","MTS","AMOUNT","RATE_DAILY","PERIOD"]
[377964351,1754632248184,-984.86,0.00018882,2]
[377964352,1754632248193,-400.0,0.00018882,2]
[377964353,1754632248202,-400.0,0.00018882,2]
[377964354,1754632248211,-1794.79,0.00018882,2]
[377964355,1754632248220,-1807.99,0.00018882,2]
[377964356,1754632248229,-441.23,0.00018882,2]
[377964357,1754632248239,-481.45,0.00018882,2]
[377964358,1754632248248,-1334.14,0.00018882,2]
[377964359,1754632248257,-400.0,0.00018882,2]
[377964360,1754632248266,-400.0,0.00018882,2]
[377964361,1754632248276,-400.0,0.00018882,2]
[377964362,1754632248285,-476.07,0.00018882,2]
[377964363,1754632248295,-400.0,0.00018882,2]
[377964364,1754632248304,-500.0,0.00018882,2]
[377964365,1754632248314,-806.27,0.00018882,2]
[377964366,1754632248323,-400.0,0.00018882,2]
[377964367,1754632248333,-400.0,0.00018882,2]
[377964368,1754632248342,-548.81,0.00018882,2]
[377964369,1754632248352,-150.0,0.00018882,2]
[377964370,1754632248361,-730.42,0.00018882,2]
[377964371,1754632248370,-870.3,0.00018882,2]
[377964372,1754632248380,-902.03,0.00018882,2]
[377964373,1754632248390,-1143.28,0.00018882,2]
[377964374,1754632248399,-400.0,0.00018882,2]
[377964375,1754632248408,-400.0,0.00018882,2]
[377964376,1754632248418,-832.4,0.00018882,2]
[377964377,1754632248427,-400.0,0.00018882,2]
[377964378,1754632248436,-485.94,0.00018882,2]
[377964379,1754632248447,-400.0,0.00018882,2]
[377964380,1754632248456,-400.0,0.00018882,2]
[377964381,1754632248465,-527.63,0.00018882,2]
[377964382,1754632248475,-556.22,0.00018882,2]
[377964383,1754632248490,-400.0,0.00018882,2]
[377964384,1754632248499,-400.0,0.00018882,2]
[377964385,1754632248509,-1785.8,0.00018882,2]
[377964386,1754632248518,-338.3575478,0.00018882,2]
[377964387,1754632248527,-400.0,0.00018882,2]
[377964388,1754632248536,-400.0,0.00018882,2]
[377964389,1754632248546,-807.87,0.00018882,2]
[377964390,1754632248555,-400.0,0.00018882,2]
[377964391,1754632248565,-400.0,0.00018882,2]
[377964392,1754632248574,-443.43,0.00018882,2]
[377964393,1754632248583,-438.89532401,0.00018882,2]
[377964394,1754632248592,-400.0,0.00018882,2]
[377964395,1754632248601,-400.0,0.00018882,2]
[377964396,1754632248610,-435.96,0.00018882,2]
[377964397,1754632248619,-936.96,0.00018882,2]
[377964398,1754632248628,-863.73,0.00018882,2]
[377964399,1754632248637,-1005.96,0.00018882,2]
[377964400,1754632248646,-484.7,0.00018882,2]
[377964401,1754632248656,-800.22,0.00018882,2]
[377964402,1754632248664,-1614.47,0.00018882,2]
[377964403,1754632248673,-400.0,0.00018882,2]
[377964404,1754632248682,-825.42,0.00018882,2]
[377964405,1754632248691,-400.0,0.00018882,2]
[377964406,1754632248700,-400.0,0.00018882,2]
[377964407,1754632248709,-1345.68,0.00018882,2]
[377964408,1754632248718,-1146.76,0.00018882,2]
[377964409,1754632248727,-1695.82,0.00018882,2]
[377964410,1754632248736,-400.0,0.00018882,2]
[377964411,1754632248746,-1152.51,0.00018882,2]
[377964412,1754632248755,-306.2996292,0.00018882,2]
[377964413,1754632248765,-858.08,0.00018882,2]
[377964414,1754632248774,-400.0,0.00018882,2]
[377964415,1754632248783,-983.97,0.00018882,2]
[377964416,1754632248792,-400.0,0.00018883,2]
[377964417,1754632248801,-400.0,0.00018883,2]
[377964418,1754632248810,-400.0,0.00018883,2]
[377964419,1754632248819,-400.0,0.00018883,2]
[377964420,1754632248828,-400.0,0.00018883,2]
[377964421,1754632248838,-400.0,0.00018883,2]
[377964422,1754632248847,-400.0,0.00018883,2]
[377964423,1754632248856,-400.0,0.00018883,2]
[377964424,1754632248865,-400.0,0.00018883,2]
[377964425,1754632248874,-400.0,0.00018883,2]
[377964426,1754632248883,-400.0,0.00018883,2]
[377964427,1754632248892,-400.0,0.00018883,2]
[377964428,1754632248901,-400.0,0.00018883,2]
[377964429,1754632248910,-400.0,0.00018883,2]
[377964430,1754632248919,-888.65,0.00018883,2]
[377964431,1754632248928,-536.47,0.00018883,2]
[377964432,1754632248937,-751.83,0.00018883,2]
[377964433,1754632248947,-400.0,0.00018883,2]
[377964434,1754632248956,-400.0,0.00018883,2]
[377964435,1754632248965,-400.0,0.00018883,2]
[377964436,1754632248974,-437.49,0.00018883,2]
[377964437,1754632248983,-400.0,0.00018883,2]
[377964438,1754632248992,-563.1,0.00018883,2]
[377964439,1754632249001,-400.0,0.00018883,2]
[377964440,1754632249010,-400.0,0.00018883,2]
[377964441,1754632249020,-155.37451088,0.00018883,2]
[377964442,1754632249029,-400.0,0.00018883,2]
[377964443,1754632249038,-400.0,0.00018883,2]
[377964444,1754632249047,-602.83,0.00018883,2]
[377964445,1754632249056,-400.0,0.00018883,2]
[377964446,1754632249066,-400.0,0.00018883,2]
[377964447,1754632249076,-972.77,0.00018883,2]
[377964448,1754632249085,-375.61914601,0.00018883,2]
[377964449,1754632249095,-878.81,0.00018883,2]
[377964450,1754632249104,-400.0,0.00018883,2]
[377964451,1754632249114,-671.07,0.00018883,2]
[377964452,1754632249124,-404.34,0.00018883,2]
[377964453,1754632249133,-400.0,0.00018883,2]
[377964454,1754632249143,-400.0,0.00018883,2]
[377964455,1754632249152,-400.0,0.00018883,2]
[377964456,1754632249161,-690.31,0.00018883,2]
[377964457,1754632249176,-400.0,0.00018883,2]
[377964458,1754632249190,-400.0,0.00018883,2]
[377964459,1754632249200,-400.0,0.00018883,2]
[377964460,1754632249210,-436.49,0.00018883,2]
[377964461,1754632249220,-400.0,0.00018883,2]
[377964462,1754632249230,-400.0,0.00018883,2]
[377964463,1754632249239,-524.01,0.00018883,2]
[377964464,1754632249249,-400.0,0.00018883,2]
[377964465,1754632249259,-410.62,0.00018883,2]
[377964466,1754632249268,-400.0,0.00018883,2]
[377964467,1754632249278,-4076.17,0.00018883,2]
[377964468,1754632249288,-400.0,0.00018883,2]
[377964469,1754632249297,-400.0,0.00018883,2]
[377964470,1754632249307,-400.0,0.00018883,2]
[377964471,1754632249316,-400.0,0.00018883,2]
[377964472,1754632249326,-567.92,0.00018883,2]
[377964473,1754632249335,-400.0,0.00018883,2]
[377964474,1754632249344,-400.0,0.00018883,2]
[377964475,1754632249354,-685.4,0.00018883,2]
[377964476,1754632249363,-400.0,0.00018883,2]
[377964477,1754632249373,-400.0,0.00018883,2]
[377964478,1754632249382,-478.1,0.00018883,2]
[377964479,1754632249392,-579.58,0.00018883,2]
[377964480,1754632249401,-2347.28,0.00018883,2]
[377964481,1754632249411,-422.96,0.00018883,2]
[377964482,1754632249420,-403.75,0.00018883,2]
[377964483,1754632249430,-1661.26,0.00018883,2]
[377964484,1754632249439,-561.91,0.00018883,2]
[377964485,1754632249449,-400.0,0.00018883,2]
[377964486,1754632249458,-400.0,0.00018883,2]
[377964487,1754632249467,-400.0,0.00018883,2]
[377964488,1754632249477,-400.0,0.00018883,2]
[377964489,1754632249490,-1542.34,0.00018883,2]
[377964490,1754632249500,-400.0,0.00018883,2]
[377964491,1754632249509,-400.0,0.00018883,2]
[377964492,1754632249519,-696.32,0.00018883,2]
[377964493,1754632249529,-518.43,0.00018883,2]
[377964494,1754632249538,-1172.04,0.00018883,2]
[377964495,1754632249548,-8058.52,0.00018883,2]
[377964496,1754632249558,-1560.8,0.00018883,2]
[377964497,1754632249568,-1644.71,0.00018883,2]
[377964498,1754632249577,-1451.83,0.00018883,2]
[377964499,1754632249587,-2009.0,0.00018883,2]
[377964500,1754632249596,-400.0,0.00018883,2]
[377964501,1754632249606,-1846.52,0.00018883,2]
[377964502,1754632249616,-1039.9,0.00018883,2]
[377964503,1754632249625,-2791.21,0.00018883,2]
[377964504,1754632249635,-1665.4,0.00018883,2]
[377964505,1754632249644,-400.0,0.00018883,2]
[377964506,1754632249655,-1109.13,0.00018883,2]
[377964507,1754632249664,-669.58,0.00018883,2]
[377964508,1754632249674,-1045.19711391,0.00018887,2]
[377964509,1754632249685,-259.95,0.00018888,2]
[377964510,1754632249695,-176.60242016,0.0001889,2]
[377964511,1754632249704,-602.43767658,0.000189,2]
[377964512,1754632249715,-165.61748385,0.000189,2]
[377964513,1754632249725,-2102.56250711,0.000189,2]
[377964514,1754632249736,-7380.06512451,0.000189,2]
[377964515,1754632249746,-1022.12103621,0.000189,2]
[377964516,1754632249755,-214.4879105,0.000189,2]
[377964517,1754632249765,-1045.19711391,0.000189,2]
[377964518,1754632249774,-431.23719906,0.000189,2]
[377964519,1754632249784,-4510.88902331,0.000189,2]
[377964520,1754632249793,-398.99622076,0.000189,3]
[377964521,1754632249803,-236.38841812,0.00018903,2]
[377964522,1754632249813,-1000.0,0.00018909,2]
[377964523,1754632249823,-1852.20621729,0.00018911,2]
[377964524,1754632249832,-500.0,0.00018914,2]
[377964525,1754632249841,-950.26962,0.0001892,2]
[377964526,1754632249851,-558.782,0.00018927,2]
[377964527,1754632249861,-153.214,0.00018927,2]
[377964528,1754632249871,-5798.19178837,0.00018936,2]
[377964529,1754632249880,-150.0,0.0001894,2]
[377964530,1754632249889,-500.0,0.00018969,2]
[377964531,1754632249899,-206.62084597,0.00018973,2]
[377964532,1754632249908,-500.0,0.00018973,2]
[377964533,1754632249918,-500.0,0.00018973,2]
[377964534,1754632249927,-500.0,0.00018973,2]
[377964535,1754632249936,-500.0,0.00018973,2]
[377964536,1754632249945,-500.0,0.00018973,2]
[377964537,1754632249955,-500.0,0.00018973,2]
[377964538,1754632249964,-164.61390416,0.00018973,2]
[377964539,1754632249973,-500.0,0.00018973,2]
[377964540,1754632249982,-519.87176113,0.00018973,2]
[377964541,1754632249991,-500.0,0.00018973,2]
[377964542,1754632250000,-500.0,0.00018973,2]
[377964543,1754632250010,-150.0,0.00018985,2]
[377964544,1754632250019,-298.38933279,0.00018986,2]
[377964545,1754632250028,-167.33640061,0.00018986,2]
[377964546,1754632250037,-150.0,0.00018986,2]
[377964547,1754632250046,-191.29748525,0.00018986,2]
[377964548,1754632250056,-211.71218952,0.00018986,2]
[377964549,1754632250065,-1933.49426443,0.0001899,2]
[377964550,1754632250074,-168.22970333,0.0001899,2]
[377964551,1754632250084,-6012.72488454,0.00018991,2]
[377964552,1754632250093,-5235.4859175,0.00018997,2]
[377964553,1754632250102,-239.4566,0.00018999,2]
[377964554,1754632250111,-1000.0,0.00018999,2]
[377964555,1754632250120,-1280.65,0.00018999,2]
[377964556,1754632250129,-764.99,0.00018999,2]
[377964557,1754632250138,-1294.89,0.00018999,2]
[377964558,1754632250147,-1214.38,0.00018999,2]
[377964559,1754632250157,-1540.31,0.00018999,2]
[377964560,1754632250166,-1980.83,0.00018999,2]
[377964561,1754632250175,-400.0,0.00018999,2]
[377964562,1754632250184,-400.0,0.00018999,2]
[377964563,1754632250193,-2383.81,0.00018999,2]
[377964564,1754632250203,-1421.59,0.00018999,2]
[377964565,1754632250212,-1550.7,0.00018999,2]
[377964566,1754632250221,-1510.57,0.00018999,2]
[377964567,1754632250230,-1576.97,0.00018999,2]
[377964568,1754632250240,-400.0,0.00018999,2]
[377964569,1754632250250,-1294.9,0.00018999,2]
[377964570,1754632250259,-1071.3,0.00018999,2]
[377964571,1754632250269,-891.13,0.00018999,2]
[377964572,1754632250279,-1337.08,0.00018999,2]
[377964573,1754632250288,-2057.54,0.00018999,2]
[377964574,1754632250297,-516.98202166,0.00019,2]
[377964575,1754632250307,-41196.98495348,0.00019,2]
[377964576,1754632250317,-3115544.77080792,0.00019,2]
[377964577,1754632250327,-1053.91,0.00019,2]
[377964578,1754632250336,-187.81786164,0.00019,2]
[377964579,1754632250346,-261.82183011,0.00019,2]
[377964580,1754632250356,-152.043144,0.00019,2]
[377964581,1754632250365,-1756442.34967742,0.00019,2]
[377964582,1754632251043,-528.08,0.00018882,2]
[377964583,1754632251054,-248.6559139,0.00019,2]
[377964584,1754632251069,-404.57931015,0.00019,2]
[377964585,1754632251129,-400.0,0.00018881,2]
[377964586,1754632251139,-71913.80927447,0.00019,2]
[377964587,1754632251148,-98467.73307634,0.00019,2]
[377964588,1754632251276,-185.10958676,0.00019,2]
[377964589,1754632252557,-400.0,0.00018881,2]
[377964590,1754632252567,-400.0,0.00018882,2]
[377964591,1754632252577,-400.0,0.00018882,2]
[377964592,1754632252586,-1071.15,0.00018999,2]
[377964593,1754632252595,-2603.92252974,0.00019,2]
[377964594,1754632252607,-4166.05995049,0.00019,2]
[377964595,1754632252618,-17905.54676411,0.00019,2]
[377964596,1754632252629,-157411.49718095,0.00019,2]
[377964597,1754632252741,-400.0,0.00018882,2]
[377964598,1754632252752,-6927.67256543,0.00019,2]
[377964599,1754632253100,-516.0,0.00018073,2]
[377964600,1754632253110,-400.0,0.00018881,2]
[377964601,1754632253121,-400.0,0.00018881,2]
[377964602,1754632253130,-1367.5926321,0.00019,2]
[377964605,1754632546093,299.8,0.00015068,2]
[377964606,1754632546286,299.8,0.00016663,2]
[377964607,1754632576830,743.81889245,0.0003,120]
[377964609,1754632609208,1000.0,0.00017934,2]
[377964610,1754632646853,251.55,0.00017918,2]
[377964611,1754632675491,179.73,0.00017907,2]
[377964613,1754632794465,10000.0,0.00030137,120]
[377964614,1754632873584,259.36,0.00017899,2]
[377964615,1754632875704,10000.0,0.00030137,120]
[377964622,1754632911258,197.0,0.000176,2]
[377964624,1754633079083,283.62,0.00013699,2]
[377964626,1754633113025,167.33640061,0.00017088,2]
[377964627,1754633113103,298.38933279,0.00017088,2]
[377964628,1754633114282,-166.66666666,0.00018056,2]
[377964629,1754633118676,-163.9716509,0.00018101,4]
[377964630,1754633122040,-214.24150108,0.00018101,4]
[377964631,1754633123988,156.59,0.00017838,2]
[377964632,1754633124892,-174.14355517,0.00018101,4]
[377964633,1754633126726,-265.24483812,0.00018101,4]
[377964634,1754633134355,191.29748526,0.00017088,2]
[377964635,1754633134384,211.71218952,0.00017088,2]
[377964638,1754633182759,666.0,0.00017814,3]
[377964646,1754633369691,175.0,0.000178,7]
[377964653,1754633432283,-516.0,0.00018068,2]
[377964654,1754633432293,-1000.0,0.00018096,4]
[377964655,1754633432303,-1000.0,0.00018124,4]
[377964656,1754633432312,-160.75,0.00018165,2]
[377964657,1754633432321,-151.0,0.0001818,2]
[377964658,1754633432332,-151.0,0.00018256,2]
[377964659,1754633432341,-299.8,0.00018257,2]
[377964660,1754633432351,-151.0,0.00018344,2]
[377964661,1754633432360,-160.75,0.00018347,2]
[377964662,1754633432370,-171.47,0.00018368,2]
[377964663,1754633432380,-1200.0,0.00018599,2]
[377964664,1754633432389,-300.0,0.00018599,2]
[377964665,1754633432399,-761.79,0.000186,2]
[377964666,1754633432408,-359.57,0.000186,2]
[377964667,1754633432418,-818.03,0.000186,2]
[377964668,1754633432429,-466.7,0.000186,2]
[377964669,1754633432439,-359.57,0.000186,2]
[377964670,1754633432448,-357.51,0.000186,2]
[377964671,1754633432458,-5199.43684444,0.00018688,2]
[377964672,1754633432467,-267.46074303,0.00018688,2]
[377964674,1754633432477,-877.96342722,0.00018722,2]
[377964675,1754633432487,-150.0,0.00018725,2]
[377964676,1754633432497,-5391.81600769,0.00018743,2]
[377964678,1754633432506,-150.0,0.00018767,2]
[377964679,1754633432516,-193.0,0.0001878,2]
[377964680,1754633432526,-165.61748385,0.0001878,2]
[377964681,1754633432535,-174.19951901,0.00018781,2]
[377964682,1754633432543,-165.81437329,0.00018781,2]
[377964684,1754633432553,-221.05220895,0.00018795,2]
[377964686,1754633432562,-1958.69939252,0.00018798,2]
[377964688,1754633432574,-617.9141118,0.00018798,2]
[377964690,1754633432585,-2105.38685513,0.00018798,2]
[377964695,1754633437218,-909.31284052,0.00018798,2]
[377964696,1754633437228,-150.0,0.0001881,2]
[377964697,1754633437238,-155.2682,0.0001881,2]
[377964698,1754633437248,-600.0,0.00018822,2]
[377964699,1754633437257,-264.56,0.00018822,2]
[377964700,1754633437266,-5798.19178837,0.00018853,2]
[377964701,1754633437278,-200.0,0.0001887,2]
[377964702,1754633437287,-600.0,0.0001887,2]
[377964703,1754633437296,-160.0,0.0001887,2]
[377964704,1754633437305,-151.0,0.0001887,2]
[377964705,1754633437315,-151.0,0.0001887,2]
[377964706,1754633437324,-500.0,0.0001887,2]
[377964707,1754633437334,-500.0,0.00018873,2]
[377964708,1754633437343,-513.98580433,0.00018873,2]
[377964709,1754633437352,-587.69,0.00018879,2]
[377964710,1754633437362,-664.57,0.0001888,2]
[377964711,1754633437371,-455.22,0.0001888,2]
[377964712,1754633437381,-545.95,0.0001888,2]
[377964713,1754633437390,-400.0,0.0001888,2]
[377964714,1754633437399,-1093.11,0.0001888,2]
[377964715,1754633437409,-400.0,0.0001888,2]
[377964716,1754633437418,-400.0,0.0001888,2]
[377964717,1754633437427,-400.0,0.0001888,2]
[377964718,1754633437437,-400.0,0.0001888,2]
[377964719,1754633437447,-400.0,0.0001888,2]
[377964720,1754633437457,-848.14,0.0001888,2]
[377964721,1754633437466,-559.66,0.0001888,2]
[377964722,1754633437476,-578.18,0.0001888,2]
[377964723,1754633437485,-400.0,0.0001888,2]
[377964724,1754633437494,-400.0,0.0001888,2]
[377964726,1754633437504,-443.21,0.0001888,2]
[377964728,1754633437513,-400.0,0.0001888,2]
[377964730,1754633437523,-400.0,0.0001888,2]
[377964731,1754633437533,-400.0,0.0001888,2]
[377964732,1754633437543,-644.8,0.0001888,2]
[377964733,1754633437552,-400.0,0.0001888,2]
[377964734,1754633437562,-400.0,0.0001888,2]
[377964735,1754633437571,-169.94159397,0.0001888,2]
[377964736,1754633437580,-400.0,0.0001888,2]
[377964737,1754633437590,-511.24,0.0001888,2]
[377964738,1754633437600,-400.0,0.0001888,2]
[377964739,1754633437610,-400.0,0.0001888,2]
[377964740,1754633437619,-664.37,0.0001888,2]
[377964741,1754633437629,-400.0,0.0001888,2]
[377964742,1754633437638,-400.0,0.0001888,2]
[377964743,1754633437647,-456.68,0.0001888,2]
[377964744,1754633437656,-400.0,0.0001888,2]
[377964745,1754633437666,-400.0,0.0001888,2]
[377964746,1754633437676,-400.0,0.0001888,2]
[377964747,1754633437685,-472.42,0.0001888,2]
[377964748,1754633437694,-400.0,0.0001888,2]
[377964749,1754633437703,-400.0,0.0001888,2]
[377964750,1754633437713,-400.0,0.0001888,2]
[377964751,1754633437723,-400.0,0.0001888,2]
[377964752,1754633437732,-664.87,0.0001888,2]
[377964753,1754633437742,-543.08,0.0001888,2]
[377964754,1754633437751,-400.0,0.0001888,2]
[377964755,1754633437761,-457.82,0.0001888,2]
[377964756,1754633437774,-400.0,0.0001888,2]
[377964757,1754633437785,-400.0,0.0001888,2]
[377964758,1754633437794,-580.38,0.0001888,2]
[377964759,1754633437804,-400.0,0.0001888,2]
[377964760,1754633437813,-728.86,0.0001888,2]
[377964761,1754633437823,-400.0,0.0001888,2]
[377964762,1754633437832,-400.0,0.0001888,2]
[377964763,1754633437842,-400.0,0.0001888,2]
[377964764,1754633437851,-577.74,0.0001888,2]
[377964765,1754633437861,-400.0,0.0001888,2]
[377964766,1754633437870,-400.0,0.0001888,2]
[377964767,1754633437880,-400.0,0.0001888,2]
[377964768,1754633437889,-536.47,0.0001888,2]
[377964769,1754633437898,-691.39,0.0001888,2]
[377964770,1754633437907,-454.51,0.0001888,2]
[377964771,1754633437916,-480.98,0.0001888,2]
[377964772,1754633437925,-400.0,0.0001888,2]
[377964773,1754633437935,-9.87045028,0.0001888,2]
[377964779,1754633438209,-390.12954972,0.0001888,2]
[377964780,1754633438219,-43.98185548,0.0001888,2]
[377964781,1754633438239,-379.63814452,0.0001888,2]
[377964782,1754633438248,-400.0,0.0001888,2]
[377964783,1754633438259,-752.68,0.0001888,2]
[377964784,1754633438268,-400.0,0.0001888,2]
[377964785,1754633438279,-400.0,0.0001888,2]
[377964786,1754633438288,-400.0,0.0001888,2]
[377964787,1754633438297,-400.0,0.0001888,2]
[377964788,1754633438307,-400.0,0.0001888,2]
[377964789,1754633438316,-949.75,0.0001888,2]
[377964790,1754633438326,-181.79105548,0.0001888,2]
[377964791,1754633438430,-218.20894452,0.0001888,2]
[377964792,1754633438439,-43.2575413,0.0001888,2]
[377964962,1754633440150,-289.20326426,0.00018879,2]
[377964964,1754633440160,-356.7424587,0.0001888,2]
[377964966,1754633440169,-346.30751195,0.0001888,2]
[377964968,1754633440182,-920.53,0.0001888,2]
[377964970,1754633440191,-773.95,0.0001888,2]
[377964997,1754633440447,-400.0,0.0001888,2]
[377964999,1754633440463,-928.26,0.0001888,2]
[377965001,1754633440474,-400.0,0.0001888,2]
[377965003,1754633440484,-926.63,0.0001888,2]
[377965005,1754633440494,-400.0,0.0001888,2]
[377965007,1754633440504,-720.67,0.0001888,2]
[377965009,1754633440514,-517.72,0.0001888,2]
[377965011,1754633440523,-629.09,0.0001888,2]
[377965013,1754633440534,-861.26,0.0001888,2]
[377965015,1754633440544,-613.14,0.0001888,2]
[377965017,1754633440553,-400.0,0.0001888,2]
[377965019,1754633440563,-400.0,0.0001888,2]
[377965021,1754633440573,-660.5,0.0001888,2]
[377965023,1754633440583,-400.0,0.0001888,2]
[377965025,1754633440593,-400.0,0.0001888,2]
[377965027,1754633440603,-481.87,0.0001888,2]
[377965029,1754633440614,-400.0,0.0001888,2]
[377965031,1754633440624,-400.0,0.0001888,2]
[377965033,1754633440633,-776.09,0.0001888,2]
[377965035,1754633440643,-400.0,0.0001888,2]
[377965037,1754633440652,-733.88,0.0001888,2]
[377965039,1754633440662,-400.0,0.0001888,2]
[377965041,1754633440671,-489.85,0.0001888,2]
[377965043,1754633440680,-400.0,0.0001888,2]
[377965045,1754633440689,-400.0,0.0001888,2]
[377965047,1754633440699,-400.0,0.0001888,2]
[377965049,1754633440708,-400.0,0.0001888,2]
[377965051,1754633440717,-400.0,0.0001888,2]
[377965052,1754633440727,-400.0,0.0001888,2]
[377965054,1754633440736,-400.0,0.0001888,2]
[377965056,1754633440746,-400.0,0.0001888,2]
[377965058,1754633440755,-400.0,0.0001888,2]
[377965060,1754633440764,-614.85,0.0001888,2]
[377965062,1754633440774,-400.0,0.0001888,2]
[377965064,1754633440784,-400.0,0.0001888,2]
[377965066,1754633440793,-699.94,0.0001888,2]
[377965068,1754633440803,-400.0,0.0001888,2]
[377965070,1754633440812,-805.92,0.0001888,2]
[377965072,1754633440822,-410.91,0.0001888,2]
[377965074,1754633440831,-400.0,0.0001888,2]
[377965076,1754633440841,-505.9,0.0001888,2]
[377965078,1754633440850,-400.0,0.0001888,2]
[377965080,1754633440861,-400.0,0.0001888,2]
[377965082,1754633440871,-692.53,0.0001888,2]
[377965084,1754633440880,-400.0,0.0001888,2]
[377965086,1754633440890,-400.0,0.0001888,2]
[377965088,1754633440899,-400.0,0.0001888,2]
[377965090,1754633440910,-402.30450616,0.0001888,2]
[377965092,1754633440919,-449.25,0.0001888,2]
[377965094,1754633440930,-400.0,0.0001888,2]
[377965096,1754633440940,-400.0,0.0001888,2]
[377965098,1754633440949,-400.0,0.0001888,2]
[377965100,1754633440959,-465.26,0.0001888,2]
[377965102,1754633440968,-500.87,0.0001888,2]
[377965104,1754633440977,-400.0,0.0001888,2]
[377965106,1754633440987,-400.0,0.0001888,2]
[377965108,1754633440996,-400.0,0.0001888,2]
[377965110,1754633441006,-518.58,0.0001888,2]
[377965112,1754633441015,-921.13,0.0001888,2]
[377965114,1754633441025,-400.0,0.0001888,2]
[377965116,1754633441035,-1294.35,0.0001888,2]
[377965118,1754633441044,-460.91,0.0001888,2]
[377965120,1754633441054,-400.0,0.0001888,2]
[377965122,1754633441064,-443.1,0.0001888,2]
[377965124,1754633441073,-488.22,0.0001888,2]
[377965126,1754633441082,-422.66,0.0001888,2]
[377965128,1754633441091,-400.0,0.0001888,2]
[377965130,1754633441101,-400.0,0.0001888,2]
[377965132,1754633441110,-400.0,0.0001888,2]
[377965134,1754633441119,-400.0,0.0001888,2]
[377965136,1754633441129,-400.0,0.0001888,2]
[377965138,1754633441138,-675.54,0.0001888,2]
[377965139,1754633441147,-789.09,0.0001888,2]
[377965141,1754633441156,-400.0,0.0001888,2]
[377965143,1754633441167,-400.0,0.0001888,2]
[377965146,1754633441177,-400.0,0.0001888,2]
[377965148,1754633441189,-400.0,0.0001888,2]
[377965150,1754633441201,-525.56,0.0001888,2]
[377965151,1754633441210,-1352.44,0.0001888,2]
[377965154,1754633441220,-400.0,0.0001888,2]
[377965156,1754633441230,-400.0,0.0001888,2]
[377965158,1754633441239,-633.82,0.0001888,2]
[377965159,1754633441249,-221.87767764,0.0001888,2]
[377965162,1754633441258,-1160.37,0.0001888,2]
[377965163,1754633441268,-400.0,0.0001888,2]
[377965166,1754633441278,-944.84,0.0001888,2]
[377965168,1754633441287,-400.0,0.0001888,2]
[377965170,1754633441298,-400.0,0.0001888,2]
[377965172,1754633441307,-400.0,0.0001888,2]
[377965173,1754633441317,-667.92,0.0001888,2]
[377965176,1754633441327,-400.0,0.0001888,2]
[377965178,1754633441336,-847.29,0.0001888,2]
[377965179,1754633441345,-418.8,0.0001888,2]
[377965181,1754633441355,-470.33,0.0001888,2]
[377965183,1754633441364,-400.0,0.0001888,2]
[377965185,1754633441373,-400.0,0.0001888,2]
[377965187,1754633441383,-576.85,0.0001888,2]
[377965189,1754633441392,-400.0,0.0001888,2]